fUSD/lending_fUSD_20260324
["ID","MTS","AMOUNT","RATE_DAILY","PERIOD"]
[408829505,1774335046421,-9999.99,0.00014056,2]
[408829506,1774335046432,-9999.99,0.00014098,2]
[408829507,1774335046441,-332.76,0.00014098,2]
[408829508,1774335046450,-150.99,0.00014098,2]
[408829509,1774335046459,-406.42,0.00014098,2]
[408829510,1774335046468,-787.85,0.00014099,2]
[408829511,1774335046478,-342.53932654,0.000141,2]
[408829512,1774335046487,-801.5327,0.000141,2]
[408829513,1774335046496,-5533.1681,0.000141,2]
[408829514,1774335046505,-267.114,0.000141,2]
[408829515,1774335046515,-200.493175,0.00014122,2]
[408829516,1774335046524,-200.493175,0.00014122,2]
[408829517,1774335046533,-200.493175,0.00014122,2]
[408829518,1774335046543,-200.493175,0.00014122,2]
[408829519,1774335046552,-3591.5275836,0.00014122,2]
[408829520,1774335046561,-385.25639426,0.00014191,2]
[408829521,1774335046571,-151.0,0.00014197,2]
[408829522,1774335046581,-1402.86,0.00014198,2]
[408829524,1774335046591,-500.0,0.00014199,2]
[408829525,1774335046600,-500.0,0.00014199,2]
[408829526,1774335046611,-500.0,0.00014199,2]
[408829527,1774335046623,-666.0,0.00014199,2]
[408829528,1774335046633,-500.0,0.00014199,2]
[408829529,1774335046643,-763.24,0.00014199,2]
[408829530,1774335046653,-500.0,0.00014199,2]
[408829531,1774335046662,-153.73598,0.000142,2]
[408829532,1774335046672,-151.0,0.000142,2]
[408829533,1774335046682,-151.0,0.000142,2]
[408829534,1774335046691,-151.0,0.000142,2]
[408829535,1774335046701,-151.0,0.000142,2]
[408829536,1774335046710,-233.30024297,0.000142,2]
[408829537,1774335046720,-151.0,0.000142,2]
[408829538,1774335046729,-500.0,0.000142,2]
[408829539,1774335046738,-154.429214,0.000142,2]
[408829540,1774335046747,-154.429214,0.000142,2]
[408829541,1774335046757,-154.429214,0.000142,2]
[408829542,1774335046766,-154.429214,0.000142,2]
[408829543,1774335046775,-693.58,0.00014202,2]
[408829544,1774335046785,-150.0,0.00014202,2]
[408829545,1774335046794,-490.84,0.00014202,2]
[408829546,1774335046806,-156.67599836,0.00014202,2]
[408829547,1774335046815,-420.53845818,0.00014215,2]
[408829548,1774335046825,-3501.49649608,0.00014215,2]
[408829549,1774335046836,-150.27399702,0.00014215,2]
[408829550,1774335046845,-574.87800144,0.00014273,2]
[408829551,1774335046854,-500.22970355,0.00014273,2]
[408829552,1774335046863,-500.0,0.00014273,2]
[408829553,1774335046872,-500.0,0.00014273,2]
[408829554,1774335046882,-345.64708422,0.00014273,2]
[408829555,1774335046891,-502.34253384,0.00014273,2]
[408829556,1774335046900,-500.38862908,0.00014273,2]
[408829557,1774335046910,-166.66,0.00014291,2]
[408829558,1774335046919,-77300.69113112,0.000143,2]
[408829559,1774335046928,-151.0,0.000143,2]
[408829560,1774335046938,-151.0,0.000143,2]
[408829561,1774335046946,-151.0,0.000143,2]
[408829562,1774335046956,-154.429214,0.000143,2]
[408829563,1774335046965,-154.429214,0.000143,2]
[408829564,1774335046974,-154.429214,0.000143,2]
[408829565,1774335046983,-154.429214,0.000143,2]
[408829566,1774335046992,-200.493175,0.000143,2]
[408829567,1774335047001,-200.493175,0.000143,2]
[408829568,1774335047011,-200.493175,0.000143,2]
[408829569,1774335047019,-200.493175,0.000143,2]
[408829570,1774335047029,-671.44754,0.00014314,2]
[408829571,1774335047038,-7386.2595331,0.00014315,2]
[408829572,1774335047047,-31545.96808128,0.00014315,2]
[408829573,1774335247911,-183.0,0.00013855,2]
[408829574,1774335247944,-150.0,0.00013855,2]
[408829575,1774335295605,4334.01,0.00013832,2]
[408829576,1774335297574,-974.7740348,0.00013832,2]
[408829577,1774335301426,1200.0,0.00013855,2]
[408829578,1774335302359,1850.4619304,0.00013832,2]
[408829579,1774335304568,-2499.09278004,0.00013832,2]
[408829580,1774335307582,-1.82443992,0.00013832,2]
[408829581,1774335312483,179.70344844,0.00013855,2]
[408829582,1774335312508,500.0,0.00013855,2]
[408829583,1774335312536,500.0,0.00013855,2]
[408829584,1774335312563,500.0,0.00013855,2]
[408829585,1774335312601,500.0,0.00013855,2]
[408829586,1774335312648,500.0,0.00013855,2]
[408829587,1774335312683,369.65697198,0.00013855,2]
[408829588,1774335312709,500.0,0.00013855,2]
[408829589,1774335312735,175.19866784,0.00013855,2]
[408829590,1774335312767,500.0,0.00013855,2]
[408829591,1774335312804,500.0,0.00013855,2]
[408829592,1774335312846,271.8020319,0.00013855,2]
[408829593,1774335314925,-80.42608718,0.00013855,2]
[408829594,1774335314957,-500.0,0.00013855,2]
[408829595,1774335314990,-500.0,0.00013855,2]
[408829596,1774335315019,-500.0,0.00013855,2]
[408829597,1774335315049,-500.0,0.00013855,2]
[408829598,1774335315081,-339.15782564,0.00013855,2]
[408829599,1774335318044,-160.84217436,0.00013855,2]
[408829600,1774335318074,-500.0,0.00013855,2]
[408829601,1774335318101,-500.0,0.00013855,2]
[408829602,1774335318130,-500.0,0.00013855,2]
[408829603,1774335318159,-500.0,0.00013855,2]
[408829604,1774335318188,-178.32565128,0.00013855,2]
[408829605,1774335320780,-321.67434872,0.00013855,2]
[408829606,1774335320811,-500.0,0.00013855,2]
[408829607,1774335320840,-500.0,0.00013855,2]
[408829608,1774335320869,-500.0,0.00013855,2]
[408829609,1774335320899,-500.0,0.00013855,2]
[408829610,1774335323764,-500.0,0.00013855,2]
[408829611,1774335323794,-500.0,0.00013855,2]
[408829612,1774335323824,-500.0,0.00013855,2]
[408829613,1774335323853,-500.0,0.00013855,2]
[408829614,1774335323884,-396.17299774,0.00013855,2]
[408829615,1774335326913,-207.66400452,0.00013855,2]
[408829616,1774335326944,-500.0,0.00013855,2]
[408829617,1774335326973,-500.0,0.00013855,2]
[408829618,1774335327002,-500.0,0.00013855,2]
[408829619,1774335327032,-500.0,0.00013855,2]
[408829620,1774335327066,-84.68199096,0.00013855,2]
[408829621,1774335329860,-415.31800904,0.00013855,2]
[408829622,1774335329896,-500.0,0.00013855,2]
[408829623,1774335329928,-500.0,0.00013855,2]
[408829624,1774335329960,-500.0,0.00013855,2]
[408829625,1774335415093,1169.37398192,0.00013832,2]
[408829626,1774335415117,4257.57570477,0.00013832,2]
[408829627,1774335421807,150.0,0.00013855,2]
[408829628,1774335497170,592.43429523,0.000138,2]
[408829629,1774335497194,3215.0224613,0.000138,2]
[408829630,1774335516743,527.29021656,0.00013855,2]
[408829631,1774335532978,522.25164134,0.00013855,2]
[408829632,1774335601863,150.0,0.00013855,2]
[408829634,1774335632755,346.79,0.00013336,2]
[408829635,1774335640306,238.6556808,0.00013855,2]
[408829636,1774335640332,261.3443192,0.00013855,2]
[408829637,1774335640371,500.0,0.00013855,2]
[408829638,1774335640523,560.38370023,0.00013855,2]
[408829640,1774335685698,3678.28198057,0.00013761,2]
[408829641,1774335687876,-1099.62365075,0.00013761,2]
[408829642,1774335688214,1490.894,0.00013579,2]
[408829643,1774335688245,173.764,0.00013579,2]
[408829644,1774335688818,1136.1046985,0.00013761,2]
[408829645,1774335690181,-2195.41996349,0.00013761,2]
[408829646,1774335729906,609.17007302,0.00013756,2]
[408829647,1774335729928,196.52652698,0.00013756,2]
[408829648,1774335734328,201.96082894,0.00013856,2]
[408829649,1774335737423,500.0,0.00013856,2]
[408829650,1774335738123,500.0,0.00013856,2]
[408829651,1774335738743,500.0,0.00013856,2]
[408829652,1774335739309,500.0,0.00013856,2]
[408829653,1774335740129,500.0,0.00013856,2]
[408829654,1774335740606,577.6093056,0.00013856,2]
[408829655,1774335745938,151.0,0.00013856,2]
[408829656,1774335746538,151.0,0.00013856,2]
[408829657,1774335747123,151.0,0.00013856,2]
[408829658,1774335747724,151.0,0.00013856,2]
[408829659,1774335748340,151.0,0.00013856,2]
[408829660,1774335748934,161.65319678,0.00013856,2]
[408829661,1774335776941,515.09415399,0.00013855,2]
[408829662,1774335778611,92.16598771,7.887e-05,2]
[408829663,1774335778634,407.83401229,7.887e-05,2]
[408829664,1774335779950,500.0,8.887e-05,2]
[408829665,1774335781303,500.0,9.887e-05,2]
[408829666,1774335782199,150.0,0.00013855,2]
[408829667,1774335782653,500.0,0.00010887,2]
[408829668,1774335783929,500.0,0.00011887,2]
[408829669,1774335785263,500.0,0.00012887,2]
[408829670,1774335797538,166.66,0.00012553,2]
[408829671,1774335797722,166.66,0.00012817,2]
[408829672,1774335797918,166.66,0.00013081,2]
[408829673,1774335798110,166.66,0.00013345,2]
[408829674,1774335798306,166.66,0.0001361,2]
[408829675,1774335799730,173.37596669,0.00013855,2]
[408829676,1774335801906,500.0,0.00013855,2]
[408829677,1774335802177,435.50002102,0.00013855,2]
[408829678,1774335802199,64.49997898,0.00013855,2]
[408829679,1774335807005,500.0,0.00013855,2]
[408829680,1774335807237,610.01444451,0.00013855,2]
[408829681,1774335829442,500.0,0.00013855,2]
[408829682,1774335829651,500.0,0.00013855,2]
[408829683,1774335839835,155.0,0.00013855,2]
[408829684,1774335879542,2670.49557651,0.00013757,2]
[408829685,1774335883223,-244.58850274,0.00013757,2]
[408829686,1774335885295,200.0,0.00013363,2]
[408829687,1774335901127,1200.0,0.00013855,2]
[408829688,1774335929288,3110.83299452,0.00013756,2]
[408829689,1774335931353,-1773.42172351,0.00013756,2]
[408829690,1774335931380,-500.0,0.00013856,2]
[408829691,1774335934344,-500.0,0.00013856,2]
[408829692,1774335934371,-500.0,0.00013856,2]
[408829693,1774335934399,-238.60721477,0.00013856,2]
[408829694,1774335946534,-2467.196649,0.00013786,2]
[408829695,1774335961828,65.616702,0.00013855,2]
[408829696,1774335961851,84.383298,0.00013855,2]
[408829697,1774335961914,300.0,0.00013855,2]
[408829698,1774335971683,3270.66081,7.945e-05,2]
[408829699,1774335989692,500.0,0.00013855,2]
[408829700,1774336005152,-551.89902194,0.00013856,2]
[408829701,1774336017890,3096.02142,0.00013786,2]
[408829702,1774336028161,1403.98858,7.945e-05,2]
[408829703,1774336028184,3083.383869,7.945e-05,2]
[408829704,1774336059410,500.0,0.00013855,2]
[408829705,1774336059646,500.0,0.00013855,2]
[408829706,1774336067863,485.91,0.00013699,2]
[408829707,1774336071972,3514.1,0.00013756,2]
[408829708,1774336075887,-786.01506817,0.00013756,2]
[408829709,1774336076943,2550.6985693,0.00013756,2]
[408829710,1774336087631,399.93485226,7.945e-05,2]
[408829711,1774336087652,399.93485226,7.945e-05,2]
[408829712,1774336087675,399.93485226,7.945e-05,2]
[408829713,1774336087696,399.93485226,7.945e-05,2]
[408829714,1774336087717,399.93485226,7.945e-05,2]
[408829715,1774336087740,399.93485226,7.945e-05,2]
[408829716,1774336087763,399.93485226,7.945e-05,2]
[408829717,1774336087784,399.93485226,7.945e-05,2]
[408829718,1774336087804,399.93485226,7.945e-05,2]
[408829719,1774336087826,399.93485226,7.945e-05,2]
[408829720,1774336087853,1519.6509444,7.945e-05,2]
[408829732,1774336232756,-1588.97214491,0.00013407,2]
[408829733,1774336232766,-318.0,0.00013407,2]
[408829734,1774336232776,-252.31247552,0.00013416,2]
[408829735,1774336232789,-3240.0,0.00013425,2]
[408829736,1774336232800,-300.0,0.00013768,2]
[408829737,1774336232809,-300.0,0.00013768,2]
[408829738,1774336232819,-1200.0,0.00013768,2]
[408829739,1774336232829,-106.05526365,0.00013769,2]
[408829740,1774336232848,-493.94473635,0.00013769,2]
[408829741,1774336232863,-2500.0,0.00013769,2]
[408829742,1774336232880,-2500.0,0.00013769,2]
[408829743,1774336232894,-300.0,0.00013854,2]
[408829744,1774336232904,-300.0,0.00013854,2]
[408829745,1774336232915,-500.0,0.00013855,2]
[408829746,1774336232926,-500.0,0.00013855,2]
[408829747,1774336232936,-500.0,0.00013855,2]
[408829748,1774336232946,-405.4389704,0.00013855,2]
[408829749,1774336232956,-150.0,0.00013855,2]
[408829750,1774336232966,-200.0,0.00013855,2]
[408829751,1774336232976,-51185.40884313,0.00013856,2]
[408829752,1774336232990,-26060.30097903,0.00013856,2]
[408829753,1774336233004,-17121.11047428,0.00013856,2]
[408829754,1774336233020,-938.55,0.00013856,2]
[408829755,1774336233032,-1350.31,0.00013856,2]
[408829756,1774336233044,-60533.0,0.00013856,2]
[408829757,1774336233089,-935.46,0.00013856,2]
[408829758,1774336233110,-10994.57332803,0.00013856,2]
[408829764,1774336238308,-400.0,0.00013855,2]
[408829765,1774336238479,-100.0,0.00013855,2]
[408829766,1774336238493,-500.0,0.00013855,2]
[408829767,1774336238503,-1450.45699931,0.00013856,2]
[408829768,1774336238596,-37217.23305342,0.00013856,2]
[408829769,1774336240788,-18385.88561907,0.00013856,2]
[408829770,1774336240799,-2090.40897658,0.00013856,2]
[408829771,1774336240963,-126875.84732145,0.00013856,2]
[408829772,1774336240974,-78228.43373349,0.00013856,2]
[408829773,1774336240986,-373.5644,0.00013856,2]
[408829774,1774336240998,-395.472,0.00013856,2]
[408829775,1774336241023,-857.81402166,0.00013856,2]
[408829776,1774336241034,-21803.79696029,0.00013856,2]
[408829796,1774336243640,-9449.51153875,0.00013856,2]
[408829797,1774336243739,-2112.68772881,0.00013856,2]
[408829798,1774336243750,-6255.84302023,0.00013856,2]
[408829799,1774336244655,-647.48738438,0.00013856,2]
[408829800,1774336244667,-5642.70196642,0.00013856,2]
[408829801,1774336244678,-2432.6275441,0.00013856,2]
[408829811,1774336246200,-444.58999998,0.00013856,2]
[408829812,1774336246321,-34728.3124931,0.00013856,2]
[408829824,1774336254931,751.4,6.604e-05,2]
[408829825,1774336255123,751.4,6.951e-05,2]
[408829826,1774336255323,751.4,7.299e-05,2]
[408829827,1774336255511,751.4,7.647e-05,2]
[408829828,1774336255745,751.4,7.994e-05,2]
[408829829,1774336256066,1243.01,0.0001385,2]
[408829830,1774336256128,751.4,8.342e-05,2]
[408829831,1774336256329,751.4,8.689e-05,2]
[408829832,1774336256613,751.4,9.037e-05,2]
[408829833,1774336256778,751.4,9.384e-05,2]
[408829834,1774336257723,-751.4,9.732e-05,2]
[408829835,1774336257757,-751.4,0.00010079,2]
[408829836,1774336257791,-751.4,0.00010427,2]
[408829837,1774336260836,-751.4,0.00010775,2]
[408829838,1774336260866,-751.4,0.00011122,2]
[408829839,1774336260898,-751.4,0.0001147,2]
[408829840,1774336263784,-751.4,0.00011817,2]
[408829841,1774336266803,-0.01,0.00011852,2]
[408829842,1774336269814,-0.02,0.00011852,2]
[408829843,1774336272832,-0.04,0.00011852,2]
[408829844,1774336275887,-0.08,0.00011852,2]
[408829845,1774336278939,-0.16,0.00011852,2]
[408829846,1774336281924,-0.32,0.00011852,2]
[408829847,1774336284988,-200.0,0.000106,2]
[408829848,1774336288064,-0.64,0.00011852,2]
[408829849,1774336291032,-1.28,0.00011852,2]
[408829850,1774336294088,-2.56,0.00011852,2]
[408829851,1774336297291,-5.12,0.00011852,2]
[408829852,1774336308068,-10.24,0.00011852,2]
[408829853,1774336311236,-20.48,0.00011852,2]
[408829854,1774336314313,-40.96,0.00011852,2]
[408829855,1774336317348,-81.92,0.00011852,2]
[408829856,1774336320720,-163.84,0.00011852,2]
[408829857,1774336323435,-327.68,0.00011852,2]
[408829858,1774336326446,-655.36,0.00011852,2]
[408829859,1774336330071,-1310.72,0.00011852,2]
[408829860,1774336330338,-984.63025764,0.00011852,2]
[408829861,1774336332794,-1393.93974236,0.00011852,2]
[408829862,1774336333255,-751.4,0.00012165,2]
[408829863,1774336333622,-709.33051528,0.00012512,2]
[408829864,1774336335541,-42.06948472,0.00012512,2]
[408829865,1774336335569,-751.4,0.0001286,2]
[408829866,1774336335596,-841.23511944,0.00013037,2]
[408829867,1774336335651,-1730.60079168,0.00013037,2]
[408829868,1774336342028,-150.0,0.00013101,2]
[408829869,1774336342056,-2232.813351,0.00013141,2]
[408829870,1774336342102,-234.383298,0.00013141,2]
[408829871,1774336347768,-300.0,0.00013207,2]
[408829872,1774336347798,-751.4,0.00013208,2]
[408829873,1774336347863,-2897.21,0.00013756,2]
[408829874,1774336421286,173.0,6.675e-05,2]
[408829875,1774336421528,156.0,6.675e-05,2]
[408829876,1774336421913,156.0,6.675e-05,2]
[408829877,1774336421993,156.0,6.675e-05,2]
[408829878,1774336422220,156.0,6.675e-05,2]
[408829879,1774336422457,156.0,6.675e-05,2]
[408829880,1774336422705,156.0,6.675e-05,2]
[408829881,1774336422989,156.0,6.675e-05,2]
[408829882,1774336423178,156.0,6.675e-05,2]
[408829883,1774336423415,156.0,6.675e-05,2]
[408829884,1774336423678,156.0,6.675e-05,2]
[408829885,1774336423914,156.0,6.675e-05,2]
[408829886,1774336424111,156.0,6.675e-05,2]
[408829887,1774336424396,156.0,6.675e-05,2]
[408829888,1774336424646,156.0,6.675e-05,2]
[408829889,1774336424873,156.0,6.675e-05,2]
[408829890,1774336425092,156.0,6.675e-05,2]
[408829891,1774336425365,156.0,6.675e-05,2]
[408829892,1774336425579,156.0,6.675e-05,2]
[408829893,1774336425829,156.0,6.675e-05,2]
[408829894,1774336426069,156.0,6.675e-05,2]
[408829895,1774336427900,167.0,6.675e-05,2]
[408829896,1774336427960,155.0,6.675e-05,2]
[408829897,1774336428017,155.0,6.675e-05,2]
[408829898,1774336428072,155.0,6.675e-05,2]
[408829899,1774336428241,155.0,6.675e-05,2]
[408829900,1774336428456,155.0,6.675e-05,2]
[408829901,1774336428686,155.0,6.675e-05,2]
[408829902,1774336428924,155.0,6.675e-05,2]
[408829903,1774336429153,155.0,6.675e-05,2]
[408829904,1774336429388,155.0,6.675e-05,2]
[408829905,1774336429667,145.01,6.675e-05,2]
[408829906,1774336429694,9.99,6.675e-05,2]
[408829907,1774336429897,155.0,6.675e-05,2]
[408829908,1774336430408,155.0,6.675e-05,2]
[408829909,1774336430669,155.0,6.675e-05,2]
[408829910,1774336430888,155.0,6.675e-05,2]
[408829911,1774336431119,155.0,6.675e-05,2]
[408829912,1774336431368,155.0,6.675e-05,2]
[408829913,1774336431578,155.0,6.675e-05,2]
[408829914,1774336431862,155.0,6.675e-05,2]
[408829915,1774336432209,155.0,6.675e-05,2]
[408829916,1774336432407,155.0,6.675e-05,2]
[408829917,1774336432648,155.0,6.675e-05,2]
[408829918,1774336432985,155.0,6.675e-05,2]
[408829919,1774336433265,155.0,6.675e-05,2]
[408829920,1774336433407,155.0,6.675e-05,2]
[408829921,1774337315835,1636.33898252,0.0001,3]
[408829922,1774337317890,393.74154547,7.888e-05,2]
[408829923,1774337364519,-1000.49,0.00011507,2]
[408829924,1774337368179,-0.01,0.00011594,2]
[408829925,1774337368648,-425.27845453,0.00011594,2]
[408829926,1774337370527,-425.29845453,0.00011594,2]
[408829927,1774337370550,-4149.41309094,0.00011594,2]
[408829928,1774337376673,-250.0,0.00011681,2]
[408829929,1774337376703,-300.30756383,0.00011855,2]
[408829936,1774337431423,-750.0,0.00012,2]
[408829938,1774337431434,-666.96670514,0.00012,2]
[408829939,1774337431531,-266.38014877,0.00012,2]
[408829940,1774337431543,-176.87484771,0.00012,2]
[408829941,1774337431552,-408.55757723,0.00012052,2]
[408829942,1774337431564,-4591.44242277,0.00012052,2]
[408829943,1774337431578,-259.52214438,0.00012186,2]
[408829944,1774337431598,-1422.95391246,0.00012321,2]
[408829945,1774337431619,-2855.66,0.00012591,2]
[408829946,1774337431628,-1200.0,0.00012656,2]
[408829947,1774337431638,-250.0,0.00012658,2]
[408829948,1774337431648,-300.0,0.00012658,2]
[408829950,1774337431658,-1135.35274504,0.00012658,2]
[408829951,1774337431667,-250.0,0.00012658,2]
[408829953,1774337431676,-5000.0,0.00012658,2]
[408829955,1774337431686,-500.0,0.0001289,2]
[408829957,1774337431695,-1500.0,0.00012988,2]
[408829960,1774337431704,-165.42,0.00012997,2]
[408829961,1774337431714,-394.8,0.00012999,2]
[408829963,1774337431723,-150.0,0.00013,2]
[408829964,1774337431733,-2704.89494253,0.00013,15]
[408829965,1774337431742,-370.8332,0.00013107,2]
[408829967,1774337431752,-195.23491641,0.00013257,2]
[408829969,1774337431761,-5000.0,0.00013257,2]
[408829971,1774337431770,-390.46916564,0.00013257,2]
[408829973,1774337431779,-300.0,0.00013257,2]
[408829975,1774337431788,-166.66,0.00013326,2]
[408829976,1774337431797,-196.40417475,0.00013493,2]
[408829977,1774337431806,-464.0,0.00013537,2]
[408829979,1774337431816,-150.0,0.00013563,2]
[408829981,1774337431825,-371.24377777,0.00013564,2]
[408829983,1774337431834,-9999.99,0.00013564,2]
[408829985,1774337431843,-9999.99,0.00013564,2]
[408829987,1774337431853,-3377.82,0.00013613,2]
[408829989,1774337431862,-7345.61932582,0.00013699,2]
[408829990,1774337431874,-1161.13067418,0.00013699,2]
[408829991,1774337431883,-347.77,0.00013699,2]
[408829992,1774337431892,-150.99,0.00013699,2]
[408829993,1774337431902,-150.27030947,0.00013754,2]
[408829994,1774337431911,-17597.77783873,0.00013755,2]
[408829995,1774337431922,-75047.39378034,0.00013755,2]
[408829996,1774337431934,-29081.15191559,0.00013755,2]
[408829997,1774337431953,-832.28,0.00013755,2]
[408829998,1774337431964,-1991.83919721,0.00013755,2]
[408829999,1774337431975,-609.8984744,0.00013755,2]
[408830007,1774337437516,-1620.0,0.00013755,2]
[408830008,1774337437535,-3684.98829565,0.00013755,2]
[408830009,1774337437581,-1277.27139037,0.00013755,2]
[408830010,1774337437674,-1657.60683096,0.00013755,2]
[408830011,1774337437685,-270.37138714,0.00013755,2]
[408830212,1774337439873,-3636.2126653,0.00013755,2]
[408830214,1774337439885,-1425.82817633,0.00013755,2]
[408830225,1774337440001,-77595.84488391,0.00013755,2]
[408830226,1774337440014,-23514.17036407,0.00013755,2]
[408830227,1774337440027,-165.42,0.0001381,2]
[408830228,1774337440037,-3694.7012904,0.00013824,2]
[408830229,1774337440047,-349.4677281,0.0001385,2]
[408830230,1774337440057,-304.0,0.00013854,2]
[408830231,1774337440068,-304.0,0.00013854,2]
[408830232,1774337440077,-500.0,0.00013855,2]
[408830233,1774337440088,-72.43368067,0.00013855,2]
[408830234,1774337440100,-427.56631933,0.00013855,2]
[408830235,1774337440110,-535.83402064,0.00013855,2]
[408830236,1774337440126,-104.17597936,0.00013855,2]
[408830237,1774337440136,-640.01,0.00013855,2]
[408830238,1774337440146,-500.0,0.00013855,2]
[408830239,1774337440156,-505.89696807,0.00013855,2]
[408830240,1774337440166,-524.13838169,0.00013855,2]
[408830241,1774337440178,-516.43,0.00013855,2]
[408830242,1774337440188,-500.0,0.00013855,2]
[408830243,1774337440198,-500.0,0.00013855,2]
[408830244,1774337440208,-200.0,0.00013856,2]
[408830245,1774337440218,-430.43359297,0.00013865,2]
[408830250,1774337442631,-277.44051981,0.00011952,2]
[408830251,1774337442641,-94.55308757,0.00013865,2]
[408830252,1774337442653,-4456.88620903,0.00013865,2]
[408830253,1774337442663,-500.0,0.00013871,2]
[408830254,1774337442674,-9552.16786547,0.00013871,2]
[408830255,1774337442684,-500.0,0.00013871,2]
[408830256,1774337442693,-500.0,0.00013871,2]
[408830257,1774337442702,-500.0,0.00013871,2]
[408830258,1774337442711,-500.0,0.00013871,2]
[408830259,1774337442721,-500.0,0.00013871,2]
[408830260,1774337442730,-500.0,0.00013871,2]
[408830261,1774337442740,-500.0,0.00013871,2]
[408830262,1774337442749,-500.0,0.00013871,2]
[408830263,1774337442759,-500.0,0.00013871,2]
[408830264,1774337442768,-500.0,0.00013871,2]
[408830265,1774337442778,-500.0,0.00013871,2]
[408830266,1774337442787,-500.0,0.00013871,2]
[408830267,1774337442796,-547.214698,0.00013871,2]
[408830268,1774337442806,-500.0,0.00013871,2]
[408830269,1774337442815,-500.0,0.00013871,2]
[408830270,1774337442825,-500.0,0.00013871,2]
[408830271,1774337442834,-500.0,0.00013871,2]
[408830272,1774337442843,-500.0,0.00013871,2]
[408830273,1774337442852,-500.0,0.00013871,2]
[408830274,1774337442862,-500.0,0.00013871,2]
[408830275,1774337442871,-500.0,0.00013871,2]
[408830276,1774337442881,-500.0,0.00013871,2]
[408830277,1774337442891,-151.0,0.00013871,2]
[408830278,1774337442900,-500.0,0.00013871,2]
[408830279,1774337442910,-500.0,0.00013871,2]
[408830280,1774337442919,-250.0,0.00013871,2]
[408830281,1774337442929,-250.0,0.00013871,2]
[408830282,1774337442939,-250.0,0.00013871,2]
[408830283,1774337442948,-250.0,0.00013871,2]
[408830284,1774337442958,-250.0,0.00013871,2]
[408830286,1774337442967,-250.0,0.00013871,2]
[408830287,1774337442976,-250.0,0.00013871,2]
[408830289,1774337442986,-215.77862974,0.00013871,2]
[408830291,1774337442996,-250.0,0.00013871,2]
[408830293,1774337443005,-250.0,0.00013871,2]
[408830296,1774337443015,-299.36534715,0.00013871,2]
[408830298,1774337443028,-262.90206542,0.00013871,2]
[408830299,1774337443037,-166.66,0.00013874,2]
[408830301,1774337443047,-166.66,0.00013876,2]
[408830303,1774337443057,-304.0,0.00013889,2]
[408830305,1774337443067,-168.0,0.00013908,2]
[408830307,1774337443076,-1680.0,0.00013922,2]
[408830309,1774337443085,-500.0,0.00013926,2]
[408830311,1774337443095,-9905.5980765,0.00013926,2]
[408830314,1774337443106,-151.0,0.00013926,2]
[408830315,1774337443116,-272.62944185,0.00013926,2]
[408830317,1774337443126,-202.7880099,0.0001393,2]
[408830332,1774337443249,-101.2119901,0.0001393,2]
[408830334,1774337443258,-200.0,0.00013931,2]
[408830336,1774337443267,-240.18665321,0.00013954,2]
[408830350,1774337443393,-2316.37625976,0.00013954,2]
[408830352,1774337443404,-2596.49347125,0.00013954,2]
[408830354,1774337443415,-663.97679172,0.00013954,2]
[408830357,1774337443428,-2606.705,0.00013954,2]
[408830595,1774337445618,-5136.39754151,0.00013954,2]